Workbook

Sheet Лист1
A1: Школа | C1: МБОУ "Поручиковская ООШ" | F1: Утвердил: | G1: должность | H1: директор школы
A2: Типовое примерное меню приготавливаемых блюд | G2: фамилия | H2: Р.Р.Хасаншин
A3: Возрастная категория | E3: 7-11 лет | G3: дата | H3: 9 | I3: 1 | J3: 2025
H4: день | I4: месяц | J4: год
A5: Неделя | B5: День недели | C5: Прием пищи | D5: Раздел меню | E5: Блюда | F5: Вес блюда, г | G5: Белки | H5: Жиры | I5: Углеводы | J5: Калорийность | K5: № рецептуры | L5: Цена
A6: 1 | B6: 1 | C6: Завтрак | D6: Салат | E6: Салат из белокочанной капусты | F6: 60 | G6: 1.16 | H6: 3.06 | I6: 6.29 | J6: 57.39 | K6: 20/2010 | L6: 69.43
D7: Гор.блюдо | E7: Котлеты "Крестьянские" с овощами (горош.зел.) | F7: 90 | G7: 11.21 | H7: 12.43 | I7: 12.84 | J7: 208.1 | K7: ттк№-202н
D8: Гарнир | E8: Каша пшеничная вязкая | F8: 150 | G8: 4.65 | H8: 4.39 | I8: 24.35 | J8: 155.48 | K8: 510/04
D9: Напиток | E9: Напиток "Плодово-ягодный" из красной смородины | F9: 200 | G9: 0.12 | H9: 0.04 | I9: 16.55 | J9: 67.06 | K9: ТТК261
D10: Хлеб | E10: Хлеб пшеничный | F10: 30 | G10: 2.28 | H10: 0.27 | I10: 14.91 | J10: 71.19
D11: итого | F11: 530 | G11: 19.42 | H11: 20.19 | I11: 74.94 | J11: 559.22
D13: итого | F13: 530 | G13: 19.42 | H13: 20.19 | I13: 74.94 | J13: 559.22 | L13: =SUM(L6:L12) -> 69.43
A14: =A6 -> 1 | B14: =B6 -> 1 | C14: Обед | D14: закуска
D15: 1 блюдо
D16: 2 блюдо
D17: гарнир
D18: напиток
D19: хлеб бел.
D20: хлеб черн.
D23: итого | F23: =SUM(F14:F22) -> 0 | G23: =SUM(G14:G22) -> 0 | H23: =SUM(H14:H22) -> 0 | I23: =SUM(I14:I22) -> 0 | J23: =SUM(J14:J22) -> 0 | L23: =SUM(L14:L22) -> 0
A24: =A6 -> 1 | B24: =B6 -> 1 | C24: Итого за день: | F24: =F13+F23 -> 530 | G24: =G13+G23 -> 19.42 | H24: =H13+H23 -> 20.19 | I24: =I13+I23 -> 74.94 | J24: =J13+J23 -> 559.22 | L24: 69.43
A25: 1 | B25: 2 | C25: Завтрак | D25: Фрукты | E25: Десерт фруктовый Яблоко | F25: 150 | G25: 0.6 | H25: 0.6 | I25: 13.5 | J25: 61.8 | K25: ТТК-495н | L25: 69.43
D26: Хол. закуска | E26: Яйцо вареное | F26: 48 | G26: 5.52 | H26: 5.04 | J26: 67.44 | K26: 337/04
D27: Гор.блюдо | E27: Каша молочная вязка "Дружба" с маслом | F27: 183 | G27: 6.46 | H27: 5.25 | I27: 38.98 | J27: 229.05 | K27: ТТК-270
D28: Гор. напиток | E28: Чай "Витаминный"полусл.с печеньем сахарным | F28: 236 | G28: 6.16 | H28: 11.51 | I28: 52.18 | J28: 336.93 | K28: ттк№253н
D29: Хлеб | E29: Хлеб пшеничный | F29: 30 | G29: 2.28 | H29: 0.27 | I29: 14.91 | J29: 71.19
D32: итого | F32: =SUM(F25:F29) -> 647 | G32: =SUM(G25:G31) -> 21.02 | H32: =SUM(H25:H31) -> 22.67 | I32: =SUM(I25:I31) -> 119.57 | J32: =SUM(J25:J31) -> 766.41 | L32: 69.43
A33: =A25 -> 1 | B33: =B25 -> 2 | C33: Обед | D33: закуска
D34: 1 блюдо
D35: 2 блюдо
D36: гарнир
D37: напиток
D38: хлеб бел.
D39: хлеб черн.
D42: итого | F42: =SUM(F33:F41) -> 0 | G42: =SUM(G33:G41) -> 0 | H42: =SUM(H33:H41) -> 0 | I42: =SUM(I33:I41) -> 0 | J42: =SUM(J33:J41) -> 0 | L42: =SUM(L33:L41) -> 0
A43: =A25 -> 1 | B43: =B25 -> 2 | C43: Итого за день: | F43: =F32+F42 -> 647 | G43: =G32+G42 -> 21.02 | H43: =H32+H42 -> 22.67 | I43: =I32+I42 -> 119.57 | J43: =J32+J42 -> 766.41 | L43: =L32+L42 -> 69.43
A44: 1 | B44: 3 | C44: Завтрак | D44: Салат | E44: Салат " Солнышко" | F44: 60 | G44: 0.71 | H44: 6.11 | I44: 8.55 | J44: 92.07 | K44: ттк-66 | L44: 69.43
E45: Мякоть птицы "По-Грузински" | F45: 100 | G45: 21.15 | H45: 3.55 | I45: 6.23 | J45: 141.41 | K45: ттк№344н
D46: Гарнир | E46: Макаронные изделия отварные | F46: 150 | G46: 5.36 | H46: 4.37 | I46: 36.54 | J46: 206.89 | K46: 516/04
D47: Напиток | E47: Напиток "Плодово-ягодный" из урюка | F47: 200 | G47: 0.51 | H47: 0.08 | I47: 19.38 | J47: 80.23 | K47: ТТК-258к
D48: Хлеб | E48: Хлеб пшеничный | F48: 30 | G48: 2.28 | H48: 0.27 | I48: 14.91 | J48: 71.19
D51: итого | F51: =SUM(F44:F50) -> 540 | G51: =SUM(G44:G50) -> 30.01 | H51: =SUM(H44:H50) -> 14.38 | I51: =SUM(I44:I50) -> 85.61 | J51: =SUM(J44:J50) -> 591.79 | L51: =SUM(L44:L50) -> 69.43
A52: =A44 -> 1 | B52: =B44 -> 3 | C52: Обед | D52: закуска
D53: 1 блюдо
D54: 2 блюдо
D55: гарнир
D56: напиток
D57: хлеб бел.
D58: хлеб черн.
D61: итого | F61: =SUM(F52:F60) -> 0 | G61: =SUM(G52:G60) -> 0 | H61: =SUM(H52:H60) -> 0 | I61: =SUM(I52:I60) -> 0 | J61: =SUM(J52:J60) -> 0 | L61: =SUM(L52:L60) -> 0
A62: =A44 -> 1 | B62: =B44 -> 3 | C62: Итого за день: | F62: =F51+F61 -> 540 | G62: =G51+G61 -> 30.01 | H62: =H51+H61 -> 14.38 | I62: =I51+I61 -> 85.61 | J62: =J51+J61 -> 591.79 | L62: =L51+L61 -> 69.43
A63: 1 | B63: 4 | C63: Завтрак | D63: Фрукты | E63: Десерт фруктовый Яблоко | F63: 150 | G63: 0.6 | H63: 0.6 | I63: 13.5 | J63: 61.8 | K63: ТТК-495н | L63: 69.43
D64: Второе блюдо | E64: Палочки рыбо-крупяные из минтая с овощ.(мексик см) | F64: 90 | G64: 11.01 | H64: 7.86 | I64: 16.65 | J64: 181.38 | K64: ТТК491н
D65: Гарнир | E65: Пюре картофельное | F65: 150 | G65: 3.12 | H65: 4.58 | I65: 14.05 | J65: 109.93 | K65: 520/04
D66: Гор. напиток | E66: Чай с лимоном | F66: 207 | G66: 0.27 | H66: 0.06 | I66: 15.28 | J66: 62.73 | K66: 686/04
D67: Хлеб | E67: Хлеб пшеничный | F67: 30 | G67: 2.28 | H67: 0.27 | I67: 14.91 | J67: 71.19
D70: итого | F70: =SUM(F63:F68) -> 627 | G70: =SUM(G63:G69) -> 17.28 | H70: =SUM(H63:H69) -> 13.37 | I70: =SUM(I63:I69) -> 74.39 | J70: =SUM(J63:J69) -> 487.03 | L70: =SUM(L63:L69) -> 69.43
A71: =A63 -> 1 | B71: =B63 -> 4 | C71: Обед | D71: закуска
D72: 1 блюдо
D73: 2 блюдо
D74: гарнир
D75: напиток
D76: хлеб бел.
D77: хлеб черн.
D80: итого | F80: =SUM(F71:F79) -> 0 | G80: =SUM(G71:G79) -> 0 | H80: =SUM(H71:H79) -> 0 | I80: =SUM(I71:I79) -> 0 | J80: =SUM(J71:J79) -> 0 | L80: =SUM(L71:L79) -> 0
A81: =A63 -> 1 | B81: =B63 -> 4 | C81: Итого за день: | F81: =F70+F80 -> 627 | G81: =G70+G80 -> 17.28 | H81: =H70+H80 -> 13.37 | I81: =I70+I80 -> 74.39 | J81: =J70+J80 -> 487.03 | L81: =L70+L80 -> 69.43
A82: 1 | B82: 5 | C82: Завтрак | D82: Закуска | E82: Салат из свеклы отварной | F82: 60 | G82: 1.09 | H82: 3.67 | I82: 6.4 | J82: 62.98 | K82: 52/11 | L82: 69.43
D83: Гор.блюдо | E83: Плов Азиатский | F83: 200 | G83: 16.74 | H83: 10.92 | I83: 41.63 | J83: 331.8 | K83: ттк-№398н
E84: Огурцы консервированные порциями | F84: 10 | G84: 0.51 | I84: 0.55 | J84: 4.22 | K84: ТТК-81н
D85: Напиток | E85: Напиток "Плодово-ягодный" из сухофруктов | F85: 200 | G85: 0.5 | H85: 0.02 | I85: 19.43 | J85: 79.92 | K85: ТТК-257н
D86: Хлеб | E86: Хлеб пшеничный | F86: 30 | G86: 2.28 | H86: 0.27 | I86: 14.91 | J86: 71.19
D89: итого | F89: =SUM(F82:F88) -> 500 | G89: =SUM(G82:G88) -> 21.12 | H89: =SUM(H82:H88) -> 14.88 | I89: =SUM(I82:I88) -> 82.92 | J89: =SUM(J82:J85) -> 478.92 | L89: =SUM(L82:L88) -> 69.43
A90: =A82 -> 1 | B90: =B82 -> 5 | C90: Обед | D90: закуска
D91: 1 блюдо
D92: 2 блюдо
D93: гарнир
D94: напиток
D95: хлеб бел.
D96: хлеб черн.
D99: итого | F99: =SUM(F90:F98) -> 0 | G99: =SUM(G90:G98) -> 0 | H99: =SUM(H90:H98) -> 0 | I99: =SUM(I90:I98) -> 0 | J99: =SUM(J90:J98) -> 0 | L99: =SUM(L90:L98) -> 0
A100: =A82 -> 1 | B100: =B82 -> 5 | C100: Итого за день: | F100: =F89+F99 -> 500 | G100: =G89+G99 -> 21.12 | H100: =H89+H99 -> 14.88 | I100: =I89+I99 -> 82.92 | J100: =J89+J99 -> 478.92 | L100: =L89+L99 -> 69.43
A101: 1 | B101: 6 | C101: Завтрак | D101: Фрукты | E101: Десерт фруктовый Яблоко | F101: 150 | G101: 0.6 | H101: 0.6 | I101: 13.5 | J101: 61.8 | K101: ТТК-495н | L101: 69.43
D102: Гор.блюдо | E102: Пельмени мясные отварные с маслом | F102: 183 | G102: 15.01 | H102: 27.15 | I102: 31.68 | J102: 431.12 | K102: 392/11
D103: Гор. напиток | E103: Чай полусладкий с печеньем сахарным в ассортименте | F103: 236 | G103: 5.6 | H103: 11.5 | I103: 39.62 | J103: 284.37 | K103: ТТК-475
D104: Хлеб | E104: Хлеб пшеничный | F104: 30 | G104: 2.28 | H104: 0.27 | I104: 14.91 | J104: 71.19
D108: итого | F108: =SUM(F101:F106) -> 599 | G108: =SUM(G101:G107) -> 23.49 | H108: =SUM(H101:H107) -> 39.52 | I108: =SUM(I101:I107) -> 99.71 | J108: =SUM(J101:J107) -> 848.48 | L108: =SUM(L101:L107) -> 69.43
A109: =A101 -> 1 | B109: 6 | C109: Обед | D109: закуска
D110: 1 блюдо
D111: 2 блюдо
D112: гарнир
D113: напиток
D114: хлеб бел.
D115: хлеб черн.
D118: итого | F118: =SUM(F109:F117) -> 0 | G118: =SUM(G109:G117) -> 0 | H118: =SUM(H109:H117) -> 0 | I118: =SUM(I109:I117) -> 0 | J118: =SUM(J109:J117) -> 0 | L118: =SUM(L109:L117) -> 0
A119: =A101 -> 1 | B119: =B101 -> 6 | C119: Итого за день: | F119: =F108+F118 -> 599 | G119: =G108+G118 -> 23.49 | H119: =H108+H118 -> 39.52 | I119: =I108+I118 -> 99.71 | J119: =J108+J118 -> 848.48 | L119: =L108+L118 -> 69.43
A120: 1 | B120: 7 | C120: Завтрак | D120: Салат | E120: Салат " Зайка" | F120: 60 | G120: 0.99 | H120: 3.09 | I120: 6.66 | J120: 58.43 | K120: ТТК-473 | L120: 69.43
D121: Второе блюдо | E121: Колбасные изд. отварные (сосиски) с овощ.(мекс.см) | F121: 90 | G121: 9.63 | H121: 12.36 | I121: 1.66 | J121: 156.39 | K121: ТТК-358н
D122: Гарнир | E122: Каша рисовая вязкая | F122: 150 | G122: 2.31 | H122: 4.13 | I122: 22.97 | J122: 138.28 | K122: 510/04
D123: Напиток | E123: Компот "Плодово-ягодный" ассорти | F123: 200 | G123: 0.01 | H123: 0.01 | I123: 16.66 | J123: 66.73 | K123: ТТК-356н
D124: Хлеб | E124: Хлеб пшеничный | F124: 30 | G124: 2.28 | H124: 0.27 | I124: 14.91 | J124: 71.19
D127: итого | F127: =SUM(F120:F124) -> 530 | G127: =SUM(G120:G126) -> 15.22 | H127: =SUM(H120:H126) -> 19.86 | I127: =SUM(I120:I126) -> 62.86 | J127: =SUM(J120:J126) -> 491.02 | L127: =SUM(L120:L126) -> 69.43
A128: =A120 -> 1 | B128: 7 | C128: Обед | D128: закуска
D129: 1 блюдо
D130: 2 блюдо
D131: гарнир
D132: напиток
D133: хлеб бел.
D134: хлеб черн.
D135: Салат-бар
D137: итого | F137: =SUM(F128:F136) -> 0 | G137: =SUM(G128:G136) -> 0 | H137: =SUM(H128:H136) -> 0 | I137: =SUM(I128:I136) -> 0 | J137: =SUM(J128:J136) -> 0 | L137: =SUM(L128:L136) -> 0
A138: =A120 -> 1 | B138: =B120 -> 7 | C138: Итого за день: | F138: =F127+F137 -> 530 | G138: =G127+G137 -> 15.22 | H138: =H127+H137 -> 19.86 | I138: =I127+I137 -> 62.86 | J138: =J127+J137 -> 491.02 | L138: =L127+L137 -> 69.43
A139: 1 | B139: 8 | C139: Завтрак | D139: Фрукты | E139: Десерт фруктовый Яблоко | F139: 100 | G139: 0.4 | H139: 0.4 | I139: 9 | J139: 41.2 | K139: ТТК-495н | L139: 69.43
D140: Второе блюдо | E140: Гуляш | F140: 100 | G140: 15.99 | H140: 5.88 | I140: 3.74 | J140: 131.82 | K140: 437/04
D141: Гарнир | E141: Макаронные изделия отварные | F141: 150 | G141: 5.36 | H141: 4.37 | I141: 36.54 | J141: 206.89 | K141: 516/04
D142: Гор. напиток | E142: Чай "Витаминный" полусладкий | F142: 200 | G142: 0.16 | H142: 0.05 | I142: 5.79 | J142: 24.23 | K142: ТТК-253к
D143: Хлеб | E143: Хлеб пшеничный | F143: 30 | G143: 2.28 | H143: 0.27 | I143: 14.91 | J143: 71.19
D146: итого | F146: =SUM(F139:F145) -> 580 | G146: =SUM(G139:G145) -> 24.19 | H146: =SUM(H139:H145) -> 10.97 | I146: =SUM(I139:I145) -> 69.98 | J146: =SUM(J139:J145) -> 475.33 | L146: =SUM(L139:L145) -> 69.43
A147: =A139 -> 1 | B147: 8 | C147: Обед | D147: закуска
D148: 1 блюдо
D149: 2 блюдо
D150: гарнир
D151: напиток
D152: хлеб бел.
D153: хлеб черн.
D156: итого | F156: =SUM(F147:F155) -> 0 | G156: =SUM(G147:G155) -> 0 | H156: =SUM(H147:H155) -> 0 | I156: =SUM(I147:I155) -> 0 | J156: =SUM(J147:J155) -> 0 | L156: =SUM(L147:L155) -> 0
A157: =A139 -> 1 | B157: =B139 -> 8 | C157: Итого за день: | F157: =F146+F156 -> 580 | G157: =G146+G156 -> 24.19 | H157: =H146+H156 -> 10.97 | I157: =I146+I156 -> 69.98 | J157: =J146+J156 -> 475.33 | L157: =L146+L156 -> 69.43
A158: 1 | B158: 9 | C158: Завтрак | D158: Салат | E158: Салат "Капуста квашеная" | F158: 60 | G158: 1.07 | H158: 3.01 | I158: 5.2 | J158: 52.21 | K158: ТТК-357н | L158: 69.43
D159: Гор.блюдо | E159: Котлеты "Любимые" с овощами (гор.зел.) | F159: 90 | G159: 8.97 | H159: 11.85 | I159: 11.19 | J159: 187.26 | K159: ттк№-201н
D160: Гарнир | E160: Пюре картофельное | F160: 150 | G160: 3.12 | H160: 4.58 | I160: 14.05 | J160: 109.93 | K160: 520/04
D161: Напиток | E161: Напиток "Плодово-ягодный" из урюка | F161: 200 | G161: 0.51 | H161: 0.08 | I161: 19.38 | J161: 80.23 | K161: ТТК-258к
D162: Хлеб | E162: Хлеб пшеничный | F162: 30 | G162: 2.28 | H162: 0.27 | I162: 14.91 | J162: 71.19
D165: итого | F165: =SUM(F158:F164) -> 530 | G165: =SUM(G158:G164) -> 15.95 | H165: =SUM(H158:H164) -> 19.79 | I165: =SUM(I158:I164) -> 64.73 | J165: =SUM(J158:J164) -> 500.82 | L165: =SUM(L158:L164) -> 69.43
A166: =A158 -> 1 | B166: =B158 -> 9 | C166: Обед | D166: закуска
D167: 1 блюдо
D168: 2 блюдо
D169: гарнир
D170: напиток
D171: хлеб бел.
D172: хлеб черн.
D175: итого | F175: =SUM(F166:F174) -> 0 | G175: =SUM(G166:G174) -> 0 | H175: =SUM(H166:H174) -> 0 | I175: =SUM(I166:I174) -> 0 | J175: =SUM(J166:J174) -> 0 | L175: =SUM(L166:L174) -> 0
A176: =A158 -> 1 | B176: =B158 -> 9 | C176: Итого за день: | F176: =F165+F175 -> 530 | G176: =G165+G175 -> 15.95 | H176: =H165+H175 -> 19.79 | I176: =I165+I175 -> 64.73 | J176: =J165+J175 -> 500.82 | L176: =L165+L175 -> 69.43
A177: 1 | B177: 10 | C177: Завтрак | D177: Фрукты | E177: Десерт фруктовый Яблоко | F177: 100 | G177: 0.4 | H177: 0.4 | I177: 9 | J177: 41.2 | K177: ТТК-495н | L177: 69.43
D178: Хол. закуска | E178: Яйцо вареное | F178: 48 | G178: 5.52 | H178: 5.04 | J178: 67.44 | K178: 337/04
D179: Гарнир | E179: Каша молочная мультизлаковая (вязкая) с маслом | F179: 183 | G179: 6.09 | H179: 6.12 | I179: 25.17 | J179: 180.07 | K179: ТТК-360н
D180: Гор. напиток | E180: Чай с лимоном с печ. сахарн в ассорт. | F180: 225 | G180: 2.97 | H180: 5.78 | I180: 32.56 | J180: 194.17 | K180: 686/04
D181: Хлеб | E181: Хлеб пшеничный | F181: 30 | G181: 2.28 | H181: 0.27 | I181: 14.91 | J181: 71.19
D184: итого | F184: =SUM(F177:F182) -> 586 | G184: =SUM(G177:G183) -> 17.26 | H184: =SUM(H177:H183) -> 17.61 | I184: =SUM(I177:I183) -> 81.64 | J184: =SUM(J177:J183) -> 554.07 | L184: =SUM(L177:L183) -> 69.43
A185: =A177 -> 1 | B185: =B177 -> 10 | C185: Обед | D185: закуска
D186: 1 блюдо
D187: 2 блюдо
D188: гарнир
D189: напиток
D190: хлеб бел.
D191: хлеб черн.
D194: итого | F194: =SUM(F185:F193) -> 0 | G194: =SUM(G185:G193) -> 0 | H194: =SUM(H185:H193) -> 0 | I194: =SUM(I185:I193) -> 0 | J194: =SUM(J185:J193) -> 0 | L194: =SUM(L185:L193) -> 0
A195: =A177 -> 1 | B195: =B177 -> 10 | C195: Итого за день: | F195: =F184+F194 -> 586 | G195: =G184+G194 -> 17.26 | H195: =H184+H194 -> 17.61 | I195: =I184+I194 -> 81.64 | J195: =J184+J194 -> 554.07 | L195: =L184+L194 -> 69.43
A196: 1 | B196: 11 | C196: Завтрак | D196: Салат | E196: Салат из моркови с сахаром | F196: 60 | G196: 0.94 | H196: 0.07 | I196: 7.96 | J196: 36.24 | K196: 62/11 | L196: 69.43
D197: Второе блюдо | E197: Мякоть птицы тушеная в соусе | F197: 100 | G197: 23.64 | H197: 4.6 | I197: 3.76 | J197: 150.98 | K197: ТТК-53к
D198: Гарнир | E198: Каша гречневая вязкая | F198: 150 | G198: 4.65 | H198: 4.75 | I198: 24.86 | J198: 160.8 | K198: 510/04
D199: Гор. напиток | E199: Кофейный напиток полусладкий | F199: 200 | G199: 3.02 | H199: 5.22 | I199: 15.9 | J199: 122.65 | K199: ТТК-343н
D200: Хлеб | E200: Хлеб пшеничный | F200: 30 | G200: 2.28 | H200: 0.27 | I200: 14.91 | J200: 71.19
D203: итого | F203: =SUM(F196:F201) -> 540 | G203: =SUM(G196:G202) -> 34.53 | H203: =SUM(H196:H202) -> 14.91 | I203: =SUM(I196:I202) -> 67.39 | J203: =SUM(J196:J202) -> 541.86 | L203: =SUM(L196:L202) -> 69.43
A204: =A196 -> 1 | B204: =B196 -> 11 | C204: Обед | D204: закуска
D205: 1 блюдо
D206: 2 блюдо
D207: гарнир
D208: напиток
D209: хлеб бел.
D210: хлеб черн.
D213: итого | F213: =SUM(F204:F212) -> 0 | G213: =SUM(G204:G212) -> 0 | H213: =SUM(H204:H212) -> 0 | I213: =SUM(I204:I212) -> 0 | J213: =SUM(J204:J212) -> 0 | L213: =SUM(L204:L212) -> 0
A214: =A196 -> 1 | B214: =B196 -> 11 | C214: Итого за день: | F214: =F203+F213 -> 540 | G214: =G203+G213 -> 34.53 | H214: =H203+H213 -> 14.91 | I214: =I203+I213 -> 67.39 | J214: =J203+J213 -> 541.86 | L214: =L203+L213 -> 69.43
A215: 1 | B215: 12 | C215: Завтрак | D215: Фрукты | E215: Десерт фруктовый Яблоко | F215: 100 | G215: 0.4 | H215: 0.4 | I215: 9 | J215: 41.2 | K215: ТТК-495н | L215: 69.43
E216: Котлеты "Татарские" с овощами(кукур.замор.) | F216: 90 | G216: 12.16 | H216: 17.08 | I216: 11.68 | J216: 249.17 | K216: ТТК-84н
D217: Гарнир | E217: Пюре из бобовых "Янтарное" | F217: 150 | G217: 16.96 | H217: 4.98 | I217: 37.41 | J217: 262.32 | K217: ТТК-446
D218: Гор. напиток | E218: Чай полусладкий | F218: 200 | G218: 0.2 | H218: 0.05 | I218: 5.06 | J218: 21.5 | K218: ТТК-475
D219: Хлеб | E219: Хлеб пшеничный | F219: 30 | G219: 2.28 | H219: 0.27 | I219: 14.91 | J219: 71.19
D222: итого | F222: =SUM(F215:F221) -> 570 | G222: =SUM(G215:G221) -> 32 | H222: =SUM(H215:H221) -> 22.78 | I222: =SUM(I215:I221) -> 78.06 | J222: =SUM(J215:J221) -> 645.38 | L222: =SUM(L215:L221) -> 69.43
A223: =A215 -> 1 | B223: =B215 -> 12 | C223: Обед | D223: закуска
D224: 1 блюдо
D225: 2 блюдо
D226: гарнир
D227: напиток
D228: хлеб бел.
D229: хлеб черн.
D232: итого | F232: =SUM(F223:F231) -> 0 | G232: =SUM(G223:G231) -> 0 | H232: =SUM(H223:H231) -> 0 | I232: =SUM(I223:I231) -> 0 | J232: =SUM(J223:J231) -> 0 | L232: =SUM(L223:L231) -> 0
A233: =A215 -> 1 | B233: =B215 -> 12 | C233: Итого за день: | F233: =F222+F232 -> 570 | G233: =G222+G232 -> 32 | H233: =H222+H232 -> 22.78 | I233: =I222+I232 -> 78.06 | J233: =J222+J232 -> 645.38 | L233: =L222+L232 -> 69.43
C234: Среднее значение за период: | F234: =AVERAGE(F24, F43, F62, F81, F100, F119, F138, F157, F176, F195, F214, F233) -> 564.9166667 | G234: =AVERAGE(G24, G43, G62, G81, G100, G119, G138, G157, G176, G195, G214, G233) -> 22.62 | H234: =AVERAGE(H24, H43, H62, H81, H100, H119, H138, H157, H176, H195, H214, H233) -> 19.24 | I234: =AVERAGE(I24, I43, I62, I81, I100, I119, I138, I157, I176, I195, I214, I233) -> 80.15 | J234: =AVERAGE(J24, J43, J62, J81, J100, J119, J138, J157, J176, J195, J214, J233) -> 578.36 | L234: =(L62+L81+L100+L119+L138+L157+L176+L195+L214+L233)/(IF(L62=0, 0, 1)+IF(L81=0, 0, 1)+IF(L100=0, 0, 1)+IF(L119=0, 0, 1)+IF(L138=0, 0, 1)+IF(L157=0, 0, 1)+IF(L176=0, 0, 1)+IF(L195=0, 0, 1)+IF(L214=0, 0, 1)+IF(L233=0, 0, 1)) -> 69.43
